{"text_format":"1","workbook":"xlsx","n_sheets":6,"sheets":["Character Creator","Careers","Skills","Names","Race","Notes"],"not_rendered":{"charts":0,"images":0,"macros":1,"external_links":0,"defined_names":11,"comments":0,"pivot_tables":0},"unopened":[],"bounds":{"document_bytes":16777216,"sheet_cells":100000,"rows_first":2000,"rows_last":500,"rows_between":2000,"halvings":0,"cell_chars":16384,"cell_head_chars":4096},"cells_cut":0,"cells_raw":0,"read":"whole","date_system":"1900"}

{"sheet":"Character Creator","index":0,"n_rows":21,"n_cols":24,"rows_kept":21,"cut":false,"hidden":false,"merged":[[1,2,1,3],[3,4,3,13],[20,5,25,12],[10,4,10,13],[14,5,15,12],[16,5,17,12],[18,5,19,12],[13,2,13,3],[12,4,12,12],[4,4,4,14],[5,4,5,14],[6,4,6,14],[7,4,7,14],[8,4,8,14],[9,4,9,14],[2,2,2,3]]}
[null,"Character points:  ",{"$f":"D1-(Q10+N17+N19+N21+N15)","v":20},{"$f":"INDEX(Race!A2:B20,MATCH(C2,Race!B2:B20,0),1)","v":20}]
[{"$f":"IF(OR(C2=\"Human (Reiklander)\",C2=\"Human (Averlander)\",C2=\"Human (Hochlander)\",C2=\"Human (Middenlander)\",C2=\"Human (Nordlander)\",C2=\"Human (Ostermarker)\",C2=\"Human (Ostlander)\",C2=\"Human (Stirlander)\",C2=\"Human (Talabeclander)\",C2=\"Human (Wissenlander)\"),\"Reiklander\",IF(OR(C2=\"Dwarf (Karak-Azgaraz)\",C2=\"Dwarf (Zhufbar)\",C2=\"Dwarf (Barak Varr)\",C2=\"Dwarf (Karaz-A-Karak)\"),\"Dwarf\",IF(C2=\"High Elf\",\"High Elf\",IF(C2=\"Wood Elf\",\"Wood Elf\",IF(C2=\"Halfling\",\"Halfling\",IF(C2=\"Ogre\",\"Ogre\",IF(C2=\"Choose your race...\",\"Choose your race...\",\"\")))))))","v":"Choose your race..."},"Race:  ","Choose your race..."]
[null,"Career:  ","Choose a career…",null,{"$f":"IF(C2=\"Choose your race...\", \"\", \"Wound Threshold:\")","v":""},{"$f":"IF($A$2=\"Reiklander\",(9+D6),IF($A$2=\"Dwarf\",(10+D6),IF($A$2=\"High Elf\",(8+D6),IF($A$2=\"Wood Elf\",(8+D6),IF($A$2=\"Halfling\",(7+D6),IF($A$2=\"Ogre\",(10+D6),\"\"))))))","v":""},{"$f":"IF(C2=\"Choose your race...\", \"\", \"Corruption Threshold:\")","v":""},{"$f":"IF($A$2=\"Reiklander\",(10+D6),IF($A$2=\"Dwarf\",(10+D6),IF($A$2=\"High Elf\",(10+D6),IF($A$2=\"Wood Elf\",(10+D6),IF($A$2=\"Halfling\",(15+D6),IF($A$2=\"Ogre\",(10+D6),\"\"))))))","v":""},null,null,null,null,null,{"$f":"INDEX(Careers!A2:'Careers'!N57,MATCH(C3,Careers!A2:'Careers'!A57,0),13)","v":0},{"$f":"INDEX(Careers!A2:'Careers'!N57,MATCH(C3,Careers!A2:'Careers'!A57,0),14)","v":0},"Base Value","Points spent","1st stat","2nd stat","stat check","Racial stat",null,"Starting","Current"]
[null,null,null,null,{"$f":"INDEX(Race!B2:'Race'!I21,MATCH(C2,Race!B2:'Race'!B21,0),2)","v":""},null,null,null,null,null,null,null,null,null,null,0,{"$f":"IF(P4=0,0,IF(P4=1,(W4+1),IF(P4=2,((W4+1)+(W4+2)), IF(P4=3,((W4+1)+(W4+2)+(W4+3)), IF(P4=4,((W4+1)+(W4+2)+(W4+3))+(W4+4),0)))))","v":0},{"$f":"IF(N$3=\"STR\", 1,0)","v":0},{"$f":"IF(O$3=\"STR\", 1,0)","v":0},{"$f":"SUM(R4:S4)","v":0},{"$f":"IF($A$2=\"Reiklander\",2,IF($A$2=\"Dwarf\",3,IF($A$2=\"High Elf\",2,IF($A$2=\"Wood Elf\",2,IF($A$2=\"Halfling\",1,IF($A$2=\"Ogre\",3,0))))))","v":0},null,{"$f":"IF(T4<>0, U4+1,U4)","v":0}]
[null,"Strength",null,{"$f":"IF(P4=0,W4,IF(P4=1,W4+1,IF(P4=2,W4+2,IF(P4=3,W4+3,IF(P4=4,W4+4,0)))))","v":0},{"$f":"INDEX(Race!B2:'Race'!I21,MATCH(C2,Race!B2:'Race'!B21,0),3)","v":""},null,null,null,null,null,null,null,null,null,null,0,0,{"$f":"IF(N$3=\"Tou\", 1,0)","v":0},{"$f":"IF(O$3=\"Tou\", 1,0)","v":0},0,{"$f":"IF($A$2=\"Reiklander\", 2,IF($A$2=\"Dwarf\", 3,IF($A$2=\"High Elf\", 2,IF($A$2=\"Wood Elf\", 2,IF($A$2=\"Halfling\",2,IF($A$2=\"Ogre\",3,0))))))","v":0},null,0]
[null,"Toughness",null,{"$f":"IF(P5=0,W5,IF(P5=1,W5+1,IF(P5=2,W5+2,IF(P5=3,W5+3,IF(P5=4,W5+4,0)))))","v":0},{"$f":"INDEX(Race!B2:'Race'!I21,MATCH(C2,Race!B2:'Race'!B21,0),4)","v":""},null,null,null,null,null,null,null,null,null,null,0,0,{"$f":"IF(N$3=\"Agi\", 1,0)","v":0},{"$f":"IF(O$3=\"Agi\", 1,0)","v":0},0,{"$f":"IF($A$2=\"Reiklander\", 2,IF($A$2=\"Dwarf\", 2,IF($A$2=\"High Elf\", 3,IF($A$2=\"Wood Elf\", 3,IF($A$2=\"Halfling\",3,IF($A$2=\"Ogre\",2,0))))))","v":0},null,0]
[null,"Agility",null,0,{"$f":"INDEX(Race!B2:'Race'!I21,MATCH(C2,Race!B2:'Race'!B21,0),5)","v":""},null,null,null,null,null,null,null,null,null,null,0,0,{"$f":"IF(N$3=\"Int\", 1,0)","v":0},{"$f":"IF(O$3=\"Int\", 1,0)","v":0},0,{"$f":"IF($A$2=\"Reiklander\", 2,IF($A$2=\"Dwarf\", 2,IF($A$2=\"High Elf\", 3,IF($A$2=\"Wood Elf\", 2,IF($A$2=\"Halfling\",2,IF($A$2=\"Ogre\",1,0))))))","v":0},null,0]
[null,"Intelligence",null,0,{"$f":"INDEX(Race!B2:'Race'!I21,MATCH(C2,Race!B2:'Race'!B21,0),6)","v":""},null,null,null,null,null,null,null,null,null,null,0,0,{"$f":"IF(N$3=\"WP\", 1,0)","v":0},{"$f":"IF(O$3=\"WP\", 1,0)","v":0},0,{"$f":"IF($A$2=\"Reiklander\", 2,IF($A$2=\"Dwarf\", 2,IF($A$2=\"High Elf\", 2,IF($A$2=\"Wood Elf\", 3,IF($A$2=\"Halfling\",2,IF($A$2=\"Ogre\",2,0))))))","v":0},null,0]
[null,"Willpower",null,0,{"$f":"INDEX(Race!B2:'Race'!I21,MATCH(C2,Race!B2:'Race'!B21,0),7)","v":""},null,null,null,null,null,null,null,null,null,null,0,0,{"$f":"IF(N$3=\"Fel\", 1,0)","v":0},{"$f":"IF(O$3=\"Fel\", 1,0)","v":0},0,{"$f":"IF($A$2=\"Reiklander\", 2,IF($A$2=\"Dwarf\", 2,IF($A$2=\"High Elf\", 2,IF($A$2=\"Wood Elf\", 2,IF($A$2=\"Halfling\",3,IF($A$2=\"Ogre\",1,0))))))","v":0},null,0]
[null,"Fellowship",null,0,{"$f":"INDEX(Race!B2:'Race'!I21,MATCH(C2,Race!B2:'Race'!B21,0),8)","v":""},null,null,null,null,null,null,null,null,null,null,null,{"$f":"SUM(Q4:Q9)","v":0}]
["Please note: The maximum any stat may be raised to is 5.",null,null,null,{"$f":"IF(C3=\"Choose a career…\", \"\", \"Career Skills\")","v":""}]
[null,null,null,null,{"$f":"INDEX(Skills!B3:I57,MATCH(C3,Skills!B3:B57,0),8)","v":""}]
[null,null,null,null,{"$f":"IF(C3=\"Choose a career…\", \"\", \"Career Ability\")","v":""},null,null,null,null,null,null,null,null,null,"Please choose...","","Please choose...","","Please choose...","","Please choose...",""]
[null,null,null,null,{"$f":"INDEX(Careers!A2:'Careers'!O57,MATCH(C3,Careers!A2:'Careers'!A57,0),15)","v":""},null,null,null,null,null,null,null,null,null,"Broke","You begin with the old, tattered clothes on your back, a dagger or quarterstaff (your choice), and 5 brass pennies.","Barely skilled","You have only 1 skill to start with.","Untalented","You begin the game with NO talents. I highly recommend you do not choose this.","One action card","You begin the game with just one action card. Action cards allow you to do a variety of things with a cinematic flair so more is often better."]
[null,null,null,"How skilled do you wish to be?","Please choose...",{"$f":"INDEX(O13:V17,MATCH(E15,Q13:Q17,0),4)","v":""},null,null,null,null,null,null,null,{"$f":"IF(E15=\"Barely skilled\",0, IF(E15=\"Some skills\", 1, IF(E15=\"Skilled\", 2, IF(E15=\"Very skilled\", 3, 0))))","v":0},"Poor","You begin with a set of durable, comfortable clothes, a small rucksack, and are armed with one of the following: a dagger, quarterstaff, crossbow, or a hand weapon (sword, mace, hammer, etc.). You also have 50 shillings.","Some skills","You possess 2 skills.","Some talent","You begin play with one talent.","Two action cards","You begin the game with two action cards. Action cards allow you to do a variety of things with a cinematic flair so more is often better."]
[null,null,null,null,null,null,null,null,null,null,null,null,null,null,"Comfortable","You begin with a set of travelling clothes, a bag with another set of clothes and a few knick-knacks (such as candles, tinderbox, etc.), a weapon (choose one of the following: a dagger, quarterstaff, crossbow with 10 bolts, bow with 10 arrows, or a hand weapon such as a sword, mace, hammer, etc.). You also have 2 gold crowns.","Skilled","You possess 3 skills. Furthermore, you have a specialization in one of those skills.","Talented","You begin play with two talents (this is honestly the minimum I'd take).","Three action cards","You begin the game with three action cards. Action cards allow you to do a variety of things with a cinematic flair so more is often better."]
[null,null,null,"How many talents do you wish to possess?","Please choose...",{"$f":"INDEX(O13:V17,MATCH(E17,S13:S17,0),6)","v":""},null,null,null,null,null,null,null,{"$f":"IF(E17=\"Untalented\",0, IF(E17=\"Some talent\", 1, IF(E17=\"Talented\", 2, IF(E17=\"Very talented\", 3, 0))))","v":0},"Affluent","You begin with a set of exceptional clothes, a sturdy backpack or satchel with a second set of clothes, a healing draught, a dagger, and a few knick-knacks (such as candles, tinderbox, etc.). You may also choose to begin with one of the following: a rapier, longbow (with 20 arrows), great weapon (great axe, great sword, etc.), or an exceptional quality hand weapon (sword, mace, hammer, etc.). Finally, you begin with 5 gold crowns.","Very skilled","You possess 4 skills. Furthermore, you have two specializations (either in two separate skills or two specializations in one skill).","Very talented","You begin play with three talents.","Four action cards","You begin the game with four action cards. Action cards allow you to do a variety of things with a cinematic flair so more is often better."]
[]
[null,null,null,"How many action cards do you wish to have?","Please choose...",{"$f":"INDEX(O13:V17,MATCH(E19,U13:U17,0),8)","v":""},null,null,null,null,null,null,null,{"$f":"IF(E19=\"One action card\",0, IF(E19=\"Two action cards\", 1, IF(E19=\"Three action cards\", 2, IF(E19=\"Four action cards\", 3, 0))))","v":0}]
[]
[null,null,null,"How wealthy do you want to be?","Please choose...",{"$f":"INDEX(O13:V17,MATCH(E21,O13:O17,0),2)","v":""},null,null,null,null,null,null,null,{"$f":"IF(E21=\"Broke\",0, IF(E21=\"Poor\", 1, IF(E21=\"Comfortable\", 2, IF(E21=\"Affluent\", 3, 0))))","v":0}]

{"sheet":"Careers","index":1,"n_rows":57,"n_cols":28,"rows_kept":57,"cut":false,"hidden":false,"merged":[[35,1,35,5],[1,17,2,17],[1,14,1,15],[1,18,2,18],[1,19,2,19],[1,20,2,20],[1,21,2,21],[0,0,0,10],[1,6,1,9],[1,12,1,13]]}
["Basic Careers"]
["Career","Human","Halflings","Dwarf","High Elf","Wood Elf","Traits",null,null,null,"Set",null,"Core Stats",null,"Special Abilities",null,null,"Reiklander","Halfling","Dwarf","High Elf","Wood Elf"]
["Choose a career…",null,null,null,null,null,null,null,null,null,null,null,null,null,"",null,null,null,null,null,null,null,"Choose your race…",null,null,null,null,{"$f":"IF('Character Creator'!$A$2=\"Reiklander\", \"Here are three careers a human is permitted to take:\", IF('Character Creator'!$A$2=\"Dwarf\", \"Here are three careers Dwarves are permitted to take:\", IF('Character Creator'!$A$2=\"High Elf\", \"Here are three careers a High Elf is permitted to take:\", IF('Character Creator'!$A$2=\"Wood Elf\", \"Here are three careers a Wood Elf is permitted to take:\", IF('Character Creator'!$A$2=\"Halfling\", \"Here are three careers a Halfling is permitted to take:\", IF('Character Creator'!$A$2=\"Ogre\", \"Here is your only career choice:\", \"Here are three entirely random careers. Remember, not all races are permitted to enter these careers:\"))))))","v":"Here are three entirely random careers. Remember, not all races are permitted to enter these careers:"}]
["Agent","X",null,"X",null,null,"Basic","Bureaucrat","Social","Urban","Core",null,"Int","Fel","Once per session, you may suffer one stress and one fatigue to add an expertise die to any skill check.",null,null,"Agent","Agitator","Agent","Apothecary","Apothecary","Choose a career…",null,{"$f":"IF('Character Creator'!C2=\"Reiklander\",INDEX(R4:R45,RANDBETWEEN(1,COUNTA(R4:R45)),1),IF('Character Creator'!C2=\"Dwarf\",INDEX(T4:T40,RANDBETWEEN(1,COUNTA(T4:T40)),1),IF('Character Creator'!C2=\"High Elf\",INDEX(U4:U26,RANDBETWEEN(1,COUNTA(U4:U26)),1),IF('Character Creator'!C2=\"Wood Elf\",INDEX(V4:V19,RANDBETWEEN(1,COUNTA(V4:V19)),1),IF('Character Creator'!C2=\"Halfling\",INDEX(S4:S24,RANDBETWEEN(1,COUNTA(S4:S24)),1),IF('Character Creator'!C2=\"Ogre\",\"Maneater\",INDEX(A4:A57,RANDBETWEEN(1,COUNTA(A4:A57)),1)))))))","v":"Ironbreaker"},{"$f":"IF('Character Creator'!C2=\"Reiklander\",INDEX(R4:R45,RANDBETWEEN(1,COUNTA(R4:R45)),1),IF('Character Creator'!C2=\"Dwarf\",INDEX(T4:T40,RANDBETWEEN(1,COUNTA(T4:T40)),1),IF('Character Creator'!C2=\"High Elf\",INDEX(U4:U26,RANDBETWEEN(1,COUNTA(U4:U26)),1),IF('Character Creator'!C2=\"Wood Elf\",INDEX(V4:V19,RANDBETWEEN(1,COUNTA(V4:V19)),1),IF('Character Creator'!C2=\"Halfling\",INDEX(S4:S24,RANDBETWEEN(1,COUNTA(S4:S24)),1),IF('Character Creator'!C2=\"Ogre\",\"Maneater\",INDEX(A4:A57,RANDBETWEEN(1,COUNTA(A4:A57)),1)))))))","v":"Waywatcher"},{"$f":"IF('Character Creator'!C2=\"Reiklander\",INDEX(R4:R45,RANDBETWEEN(1,COUNTA(R4:R45)),1),IF('Character Creator'!C2=\"Dwarf\",INDEX(T4:T40,RANDBETWEEN(1,COUNTA(T4:T40)),1),IF('Character Creator'!C2=\"High Elf\",INDEX(U4:U26,RANDBETWEEN(1,COUNTA(U4:U26)),1),IF('Character Creator'!C2=\"Wood Elf\",INDEX(V4:V19,RANDBETWEEN(1,COUNTA(V4:V19)),1),IF('Character Creator'!C2=\"Halfling\",INDEX(S4:S24,RANDBETWEEN(1,COUNTA(S4:S24)),1),IF('Character Creator'!C2=\"Ogre\",\"Maneater\",INDEX(A4:A57,RANDBETWEEN(1,COUNTA(A4:A57)),1)))))))","v":"Apprentice Runesmith"},{"$f":"IF('Character Creator'!C2=\"Ogre\", \"Maneater\", CONCATENATE(Y4,\", \",Z4,\", or \", AA4))","v":"Ironbreaker, Waywatcher, or Apprentice Runesmith"}]
["Agitator","X","X","X",null,null,"Basic","Rogue","Social","Urban","Core",null,"Int","Fel","Your social initiative checks gain two fortune dice.",null,null,"Agitator","Apothecary","Agitator","Boatman","Bounty Hunter"]
["Apothecary","X","X","X","X","X","Academic","Basic","Menial","Specialist","Winds of Magic",null,"Int","Tou","Add a fortune die to determine the effects of any healing draught you imbibe or administer to another character.",null,null,"Apothecary","Boatman","Apothecary","Bounty Hunter","Envoy"]
["Apprentice Runesmith",null,null,"X",null,null,"Academic","Basic","Runesmith","Specialist","Blackfire Pass",null,"Int","WP","You may purchase Rune cards as Talents. You may create runic items with 1 rune each.",null,null,"Apprentice Wizard","Commoner","Apprentice Runesmith","Burgher","Hunter"]
["Apprentice Wizard","X",null,null,null,null,"Academic","Arcane","Basic","Wizard","Core",null,"Int","WP","Spellcraft checks for Rank 1 or lower Spells gain a fortune die.",null,null,"Bailiff","Dockhand","Bailiff","Courtier","Mercenary"]
["Bailiff","X",null,"X",null,null,"Basic","Bureaucrat","Social","Urban","Adventurers Toolkit",null,"Tou","Fel","Add 1 fortune point to the party's fortune pool the first time you suffer stress during an encounter.",null,null,"Barber-Surgeon","Forger","Barber-Surgeon","Dilettante","Messenger"]
["Barber-Surgeon","X",null,"X",null,null,"Basic","Social","Specialist","Urban","Core",null,"Int","Fel","Once per session, you may add an expertise die to any First Aid or Medicine check.",null,null,"Boatman","Gambler","Boatman","Envoy","Mystic"]
["Boatman","X","X","X","X",null,"Basic","Menial","Rural","Urban","Core",null,"Str","Agi","You may remove a misfortune die from your dice pool when attempting Athletics, Coordination, Stealth, or Discipline checks while on a boat, ship, or unstable surface.",null,null,"Bounty Hunter","Grave Robber","Bounty Hunter","Fop","Navigator"]
["Bounty Hunter","X",null,"X","X","X","Basic","Combat","Rural","Urban","Adventurers Toolkit",null,"Agi","Int","Once per session, you may name one adversary as your quarry. Add an expertise die to all Observation, Intuition, Melee Attack and Ranged Attack checks targeting your quarry for the remainder of the encounter.",null,null,"Burgher","Halfling Chef","Burgher","Gambler","Performer"]
["Burgher","X",null,"X","X",null,"Basic","Bureaucrat","Social","Urban","Core",null,"Int","Fel","Once per session, you may add an expertise die to any Charm or Leadership check.",null,null,"Coachman","Hunter","Coachman","Hunter","Pit Fighter"]
["Coachman","X",null,"X",null,null,"Basic","Rural","Specialist","Urban","Core",null,"Tou","Agi","Once per session, you may add an expertise die to a Ride check or to a Ballistic Skill check made while mounted or while on a moving vehicle.",null,null,"Commoner","Mercenary","Courtier","Mercenary","Scout"]
["Commoner","X","X",null,null,null,"Basic","Menial","Rural","Social","Core",null,"Tou","WP","Whenever fortune refreshes, recover one fatigue.",null,null,"Courtier","Minstrel","Dilettante","Messenger","Servant"]
["Courtier","X",null,"X","X",null,"Basic","Noble","Social","Urban","Lure of Power",null,"WP","Fel","You gain two Boons to all Social actions and Fellowship checks targeting anyone with a Noble Rank higher than yours.",null,null,"Dilettante","Pedlar","Dockhand","Minstrel","Soldier"]
["Dilettante","X",null,"X","X",null,"Academic","Basic","Social","Specialist","Core",null,"Int","Fel","Once per session, you may treat any one untrained basic skill as if it were trained, or you may attempt one advanced skill as if you had acquired it.",null,null,"Dockhand","Performer","Dwarf Engineer","Mystic","Thief"]
["Dockhand","X","X","X",null,null,"Basic","Menial","Rural","Urban","Adventurers Toolkit",null,"Str","Tou","Add 5 to your encumbrance limit.",null,null,"Fop","Pit Fighter","Forger","Navigator","Wardancer"]
["Dwarf Engineer",null,null,"X",null,null,"Academic","Basic","Engineer","Specialist","Blackfire Pass",null,"Agi","Int","You may purchase Invention cards as Talents. You may socket an Invention into 1 of your Talent slots.",null,null,"Forger","Ratcatcher","Gambler","Performer","Waywatcher"]
["Envoy",null,null,null,"X","X","Academic","Basic","Bureaucrat","Social","Core",null,"Int","Fel","Once per session, you may treat your Fellowship characteristic as if it were one point higher.",null,null,"Gambler","Scout","Grave Robber","Scout"]
["Fop","X",null,null,"X",null,"Basic","Noble","Social","Urban","Lure of Power",null,"Int","Fel","Once per session, you may make a free disengage manoeuvre. You may do this anytime, even when it is not your turn.",null,null,"Grave Robber","Servant","Grudge Keeper","Scribe"]
["Forger","X","X","X",null,null,"Basic","Rogue","Specialist","Urban","Winds of Magic",null,"Agi","Int","You may choose to socket one Reputation talent in one of your Focus talent slots.",null,null,"Hunter","Smuggler","Hunter","Servant"]
["Gambler","X","X","X","X",null,"Basic","Rogue","Social","Urban","Core",null,"Agi","Fel","Once per session, you may re-roll the entire dice pool for any single check. Dice cannot be changed or added to the pool. You must accept the new result.",null,null,"Initiate","Thief","Ironbreaker","Soldier"]
["Grave Robber","X","X","X",null,null,"Basic","Menial","Rogue","Specialist","Winds of Magic",null,"Tou","WP","Illegal activites you perform that require a skill check gain: Boon = Recover 1 stress",null,null,"Mercenary","Thug","Mercenary","Student"]
["Grudge Keeper",null,null,"X",null,null,"Academic","Basic","Rural","Specialist","Blackfire Pass",null,"Tou","Int","When wronged, you may make note of the event in your Book of Grudges. You and your dwarf allies gain an expertise die instead of a fortune die when spending fortune points on checks that target foes listed in your Book.",null,null,"Messenger",null,"Messenger","Sword Master"]
["Halfling Chef",null,"X",null,null,null,"Basic","Menial","Rogue","Social","Hero's Call","* talents = 1 focus, 1 tactic","Agi","Fel","Once per day, you may make a special meal and roll a number of fortune dice equal to your Fellowship score. Anyone eating the meal recovers a number of Stress and Fatigue equal to the number of successes rolled.",null,null,"Minstrel",null,"Miner","Thief"]
["Hunter","X","X","X","X","X","Basic","Menial","Rural","Specialist","Core",null,"Tou","Agi","You gain a fortune die to Nature Lore checks to track animals and beasts, Observation checks to notice animals and beasts, and Ballistic Skill checks to attack animals and beasts.",null,null,"Mystic",null,"Navigator"]
["Initiate","X",null,null,null,null,"Academic","Basic","Priest","Religion","Core",null,"Wp","Fel","Invocation checks for Rank 1 or lower Blessings gain a fortune die.",null,null,"Navigator",null,"Pedlar"]
["Ironbreaker",null,null,"X",null,null,"Basic","Combat","Ironbreaker","Specialist","Adventurers Toolkit",null,"Tou","WP","You have a set of Gromril Plate Armour. Take the Gromil Plate Armour item card. You cannot give away, sell, lend, or trade this armour.",null,null,"Pedlar",null,"Performer"]
["Mercenary","X","X","X","X","X","Basic","Combat","Menial","Rogue","Core",null,"Str","WP","Once per session, you may add an expertise die to any single Weapon Skill check you make",null,null,"Performer",null,"Pit Fighter"]
["Messenger","X",null,"X","X","X","Basic","Bureaucrat","Social","Urban","Core",null,"Agi","Fel","Each time fortune refreshes, you may immediately perform a free manoeuvre.",null,null,"Pistolier",null,"Ratcatcher"]
["Miner",null,null,"X",null,null,"Basic","Industrious","Menial","Rural","Blackfire Pass",null,"Str","Tou","Intuition, Nature Lore, and Resilience checks gain a fortune die when in mountainous territory or underground.",null,null,"Pit Fighter",null,"Scribe"]
["Minstrel","X","X",null,"X",null,"Basic","Menial","Social","Urban","Lure of Power",null,"WP","Fel","You may add an expertise die instead of a fortune die when you spend a fortune point on a Folklore check. You may only do this once per check.",null,null,"Ratcatcher",null,"Servant"]
["Mystic","X",null,null,"X","X","Arcane","Basic","Rural","Social","Signs of Faith",null,"Fel","Int","You may spend your fortune points to add a fortune die to the dice pool of any ally within close range.",null,null,"Roadwarden",null,"Smuggler"]
["Navigator","X",null,"X","X","X","Basic","Rural","Specialist","Urban","Winds of Magic",null,"Tou","Int","You may spend one fortune point to get your bearings when lost, discern true north, or add two fortune dice to a check to navigate in foreign terrain.",null,null,"Scout",null,"Soldier"]
["Ogre Maneater","Ogre Only",null,null,null,null,"Basic","Combat","Menial","Rogue","Hero's Call",null,"Str","Tou","???",null,null,"Scribe",null,"Student"]
["Pedlar","X","X","X",null,null,"Basic","Menial","Social","Rural","Signs of Faith",null,"Tou","Fel","When haggling over Abundant goods, gain two fortune dice to your skill check. When haggling over Plentiful goods, gain a fortune die to your skill check.",null,null,"Servant",null,"Thief"]
["Performer","X","X","X","X","X","Basic","Menial","Social","Urban","Signs of Faith",null,"Agi","Fel","When spending fortune points on an Intuition or Observation check, add an expertise die instead of a fortune die for each fortune point spent.",null,null,"Smuggler",null,"Thug"]
["Pistolier","X",null,null,null,null,"Basic","Military","Noble","Specialist","Omens of War",null,"Agi","Fel","You ignore penalties for being on horseback while firing ranged weapons",null,null,"Soldier",null,"Troll Slayer"]
["Pit Fighter","X","X","X",null,"X","Basic","Combat","Menial","Specialist","Adventurers Toolkit",null,"Str","Tou","Add a fortune die to your Melee Attacks whenever you are in an engagement with more than two combatants.",null,null,"Student",null,"Watchman"]
["Ratcatcher","X","X","X",null,null,"Basic","Menial","Rural","Urban","Adventurers Toolkit",null,"Tou","Agi","You have a small but vicious dog. Take the Small But Vicious Dog follower sheet. You can teach your dog Trick talents and attach them to its sheet.",null,null,"Thief"]
["Roadwarden","X",null,null,null,null,"Basic","Rural","Social","Specialist","Core",null,"Tou","Int","Once per session, you may add an expertise die to any Intimidate or Ride check.",null,null,"Thug"]
["Scout","X","X",null,"X","X","Basic","Menial","Rogue","Rural","Core",null,"Agi","Int","Once per session, you may add an expertise die to any Observation or Stealth check.",null,null,"Watchman"]
["Scribe","X",null,"X","X",null,"Academic","Basic","Social","Specialist","Adventurers Toolkit",null,"Int","WP","Your Education checks gain: Two Boons =  Add 1 fortune point to the party fortune pool",null,null,"Witch"]
["Servant","X","X","X","X","X","Basic","Menial","Rural","Urban","Winds of Magic",null,"Tou","WP","You may choose to socket a Focus talent in your Reputation slot.",null,null,"Zealot"]
["Smuggler","X","X","X",null,null,"Basic","Rogue","Specialist","Urban","Adventurers Toolkit",null,"Tou","Fel","Your Skulduggery checks gain: Two Boons =  Add 1 fortune point to the party fortune pool"]
["Soldier","X",null,"X","X","X","Basic","Combat","Military","Specialist","Core",null,"Tou","WP","During each rally step in combat, recover 1 fatigue and 1 stress."]
["Student","X",null,"X","X",null,"Academic","Basic","Social","Urban","Core",null,"Int","Fel","Once per session, you may add an expertise die to any Education or Folklore check."]
["Sword Master",null,null,null,"X",null,"Basic","Combat","Sword Master","Specialist","Adventurers Toolkit",null,"Tou","Agi","You have a Greatsword of Hoeth. Take the Greatsword of Hoeth item card. You cannot give away, sell, lend, or trade this sword."]
["Thief","X","X","X","X","X","Basic","Rogue","Social","Urban","Core",null,"Agi","Fel","Once per session, you may add an expertise die to any Guile or Skulduggery check."]
["Thug","X","X","X",null,null,"Basic","Combat","Menial","Rogue","Core",null,"Str","Agi","You inflict +1 damage against henchmen and against any target with a lower Strength than yours."]
["Troll Slayer",null,null,"X",null,null,"Basic","Combat","Fanatic","Slayer","Core",null,"Str","Tou","While in a Slayer career, you cannot wear armour, but have a natural Defence of 1 and a natural soak value equal to 1+ the number of Slayer careers you have completed."]
["Wardancer",null,null,null,null,"X","Basic","Combat","Ritual Dancer","Rural","Adventurers Toolkit",null,"Agi","WP","When one of your Melee Attacks inflicts at least one critical wound, you may immediately flip one of your currently recharging action cards so the opposite stance side is revealed. The number of recharge tokens on the card remains the same."]
["Watchman","X",null,"X",null,null,"Basic","Bureaucrat","Combat","Urban","Core",null,"Tou","Fel","During a Rally Step, you may remove 1 recharge token from any one of your currently recharging action cards, or from an action of any character engaged with you."]
["Waywatcher",null,null,null,null,"X","Basic","Combat","Rural","Watcher","Core",null,"Agi","WP","Your combat initiative checks gain two fortune dice."]
["Witch","X",null,null,null,null,"Arcane","Basic","Rural","Witch","Witches Song",null,"Fel","WP","You gain +1 corruption treshold. Once during your turn, before casting a spell, you may suffer one normal wound to gain 1 power, or convert one random normal wound into a critical wound to gain power equal to the critical wound's severity rating."]
["Zealot","X",null,null,null,null,"Basic","Devoted","Fanatic","Religion","Core",null,"Tou","WP","Once per session, you may exhaust your insanity talent to add a fortune die to any check equal to the severity of the insanity. The insanity automatically refreshes at the end of the current act."]

{"sheet":"Skills","index":2,"n_rows":57,"n_cols":12,"rows_kept":57,"cut":false,"hidden":false,"merged":[[1,9,1,12]]}
[]
[null,null,null,null,null,null,null,null,null,"Skill Specialization List"]
[null,"Choose a career…","","","","","","","","Skills","Stat","Possible Specializations"]
[null,"Agent","Charm","Education","Folklore","Guile","Intuition",null,{"$f":"CONCATENATE(C4,\", \",D4,\", \",E4,\", \",F4,\", \",G4)","v":"Charm, Education, Folklore, Guile, Intuition"},"Animal Handling","(Fel)","Command, Train, Sense Disposition, Calm Animal"]
[null,"Agitator","Charm","Guile","Intuition","Leadership","Observation",null,{"$f":"CONCATENATE(C5,\", \",D5,\", \",E5,\", \",F5,\", \",G5)","v":"Charm, Guile, Intuition, Leadership, Observation"},"Athletics","(Str)","Climbing, Swimming, Jumping, Rowing, Running, Lifting"]
[null,"Apothecary","Folklore","First Aid","Intuition","Nature Lore","Observation",null,"Folklore, First Aid, Intuition, Nature Lore, Observation","Ballistic Skill","(Agi)","Bow, Crossbow, Thrown Weapons, Blackpowder Weapons, Sling"]
[null,"Apprentice Runesmith","Discipline","Education","Intuition","Observation","Tradecraft",null,"Discipline, Education, Intuition, Observation, Tradecraft","Channelling","(Wp)","Below Capacity, Overchanneling, Conservative, Reckless, by college order"]
[null,"Apprentice Wizard","Channelling","Discipline","Education","Intuition","Magical Sight, Observation, Spellcraft",null,"Channelling, Discipline, Education, Intuition, Magical Sight, Observation, Spellcraft","Charm","(Fel)","Etiquette, Gossip, Diplomacy, Haggling, Seduction, Beg, Public Speaking"]
[null,"Bailiff","Charm","Folklore","Guile","Intimidate","Resilience",null,"Charm, Folklore, Guile, Intimidate, Resilience","Coordination","(Agi)","Dodge, Balance, Acrobatics, Juggling, Dance, Knots & Ropework, Scale Sheer Surfaces"]
[null,"Barber-Surgeon","Charm","Discipline","First Aid","Folklore","Leadership",null,"Charm, Discipline, First Aid, Folklore, Leadership","Discipline","(Wp)","Resist Charm, Resist Guile, Resist Intimidate, Resist Fear, Resist Terror, Resist Torture"]
[null,"Boatman","Athletics","Coordination","Nature Lore","Observation","Resilience",null,"Athletics, Coordination, Nature Lore, Observation, Resilience","Education","(Int)","History, Geography, Reason, Language Skills, Philosophy, Theology, Arts, Astronomy, Daemonology, Engineering, Geneaology/Heraldry, Law, Magic, Necromancy, Runes, Science, Strategy/Tactics, Navigation: Ocean Vessels"]
[null,"Bounty Hunter","Ballistic Skill","Intuition","Observation","Ride","Stealth",null,"Ballistic Skill, Intuition, Observation, Ride, Stealth","First Aid","(Int)","Combat Surgery, Long Term Care, Tending Critical Wounds, Tending Normal Wounds"]
[null,"Burgher","Charm","Discipline","Education","Folklore","Tradecraft",null,"Charm, Discipline, Education, Folklore, Tradecraft","Folklore","(Int)","Creature Lore, Reikland Lore, Geography, Superstitions, Local Customs, Speak Breton, Speak Eltharin , Speak Estalian , Speak Khazalid , Speak Kislevian , Speak Norse , Speak Reikspiel , Speak Tilean , Speak Classical , Speak Dark Tongue (beastmen, chaos) , Speak Goblin Tongue (greenskins) , Speak Grumbarth (Ogres)"]
[null,"Coachman","Animal Handling","Ballistic Skill","Coordination","Resilience","Ride",null,"Animal Handling, Ballistic Skill, Coordination, Resilience, Ride","Guile","(Fel)","Deception, Blather, Con Games, Innuendo, Appear Innocent, Disguise"]
[null,"Commoner","Animal Handling","Athletics","Folklore","Nature Lore","Resilience",null,"Animal Handling, Athletics, Folklore, Nature Lore, Resilience","Intimidate","(Str)","Violence, Combat, Interrogation, Politics"]
[null,"Courtier","Charm","Discipline","Guile","Intuition","Observation",null,"Charm, Discipline, Guile, Intuition, Observation","Intuition","(Int)","Detect Lies, Estimate Sums, Evaluation, Gauge Opponent"]
[null,"Dilettante","Charm","Education","Folklore","Guile","Ride",null,"Charm, Education, Folklore, Guile, Ride","Invocation","(Fel)","Each deity has its own specialization, Traditions, Rituals, Tenets"]
[null,"Dockhand","Athletics","Coordination","Guile","Intimidate","Resilience",null,"Athletics, Coordination, Guile, Intimidate, Resilience","Leadership","(Fel)","Military Leadership, Politician, Logistics, Spiritual Leader"]
[null,"Dwarf Engineer","Ballistic Skill","Dwarf Engineering","Education","Observation","Tradecraft",null,"Ballistic Skill, Dwarf Engineering, Education, Observation, Tradecraft","Magical Sight","(Int)","Observe Specific Wind, Identify Spell, Locate Aura, Dark Magic, Gauge Strength"]
[null,"Envoy","Charm","Folklore","Intuition","Leadership","Observation",null,"Charm, Folklore, Intuition, Leadership, Observation","Medicine","(Int)","Critical Wounds, Poison, Disease, Long Term Care, Surgery"]
[null,"Fop","Charm","Education","Guile","Ride",null,null,{"$f":"CONCATENATE(C21,\", \",D21,\", \",E21,\", \",F21)","v":"Charm, Education, Guile, Ride"},"Nature Lore","(Int)","Locate Shelter, Locate Food, Locate Water, Identify Animal, Identify Plant, Find Trails, Navigation: Land Travel, Navigation: Waterways, River Life, "]
[null,"Forger","Coordination","Guile","Intuition","Observation","Skulduggery",null,"Coordination, Guile, Intuition, Observation, Skulduggery","Observation","(Int)","Eavesdropping, Tracking, Keen Vision, Minute Details"]
[null,"Gambler","Guile","Intuition","Observation","Skulduggery","Stealth",null,"Guile, Intuition, Observation, Skulduggery, Stealth","Piety","(Wp)","Below Capacity, Conservative, Reckless, Urgent Need"]
[null,"Grave Robber","Coordination","Discipline","Guile","Resilience","Stealth",null,"Coordination, Discipline, Guile, Resilience, Stealth","Resilience","(Tou)","Block, Recover Fatigue, Resist Disease, Resist Poison, Resist Starvation, Consume Alcohol"]
[null,"Grudge Keeper","Education","Folklore","Nature Lore","Observation","Resilience",null,"Education, Folklore, Nature Lore, Observation, Resilience","Ride","(Agi)","Horsemanship, Trick Riding, Wagons, Mounted Combat, Long Distance Travel, Chariots"]
[null,"Halfling Chef","Guile","Observation","Skulduggery","Stealth","Tradecraft",null,"Guile, Observation, Skulduggery, Stealth, Tradecraft","Skulduggery","(Agi)","Pick Pockets, Pick Locks, Set Traps, Disable Traps, Palm Objects, Thieves' Signs"]
[null,"Hunter","Athletics","Ballistic Skill","Nature Lore","Observation","Stealth",null,"Athletics, Ballistic Skill, Nature Lore, Observation, Stealth","Spellcraft","(Int)","History of Magic, Colleges of Magic, Rank 1 spells, Rank 2 spells, Rank 3 spells, Rank 4 spells, Rank 5 spells, Lingua Praestantia"]
[null,"Initiate","Charm","Education","First Aid","Intuition","Piety",null,"Charm, Education, First Aid, Intuition, Piety","Stealth","(Agi)","Silent Movement: Rural, Silent Movement: Wilderness, Hide, Ambush, Silent Movement: Urban, Silent Movement: Indoors, Silent Movement: Underground, Follow Unnoticed"]
[null,"Ironbreaker","Athletics","Discipline","Leadership","Resilience","Weapon Skill",null,"Athletics, Discipline, Leadership, Resilience, Weapon Skill","Tradecraft","(Varies)","Smithing, Carpentry, Jewellery Making, Brewing, Engineering, Performance (Actor, Clown, Comedian, Dancer, Fire Eater, Jester, Juggler, Mime, Musician, Palm Reader, Singer, Storyteller), Apothecary, Artist, Bowyer, Calligrapher, Candlemaker, Cartographer, Cook, Cooper, Embalmer, Farmer, Gem Cutter, Goldsmith, Gunsmith, Herbalist, Merchant, Miller, Miner, Prospector, Shipwright, Shoemaker, Mason, Tailor, Tanner"]
[null,"Mercenary","Athletics","Ballistic Skill","Guile","Ride","Weapon Skill",null,"Athletics, Ballistic Skill, Guile, Ride, Weapon Skill","Weapon Skill","(Str)","Hand Weapons, Great Weapons, Polearms, Parry with hand weapon, Parry with great weapon, Flail, Cavalry, Fencing, Staff, Spear, Unarmed Combat"]
[null,"Messenger","Charm","Folklore","Intuition","Ride","Stealth",null,"Charm, Folklore, Intuition, Ride, Stealth"]
[null,"Miner","First Aid","Intuition","Nature Lore","Observation","Resilience",null,"First Aid, Intuition, Nature Lore, Observation, Resilience"]
[null,"Minstrel","Charm","Coordination","Discipline","Folklore","Intuition",null,"Charm, Coordination, Discipline, Folklore, Intuition"]
[null,"Mystic","Charm or Guile","Folklore","Intuition","Magical Sight","Observation",null,"Charm or Guile, Folklore, Intuition, Magical Sight, Observation"]
[null,"Navigator","Athletics","Intuition","Observation","Resilience","Ride",null,"Athletics, Intuition, Observation, Resilience, Ride"]
[null,"Ogre Maneater","Athletics","Discipline","Intimidate","Resilience","Weapon Skill",null,"Athletics, Discipline, Intimidate, Resilience, Weapon Skill"]
[null,"Pedlar","Charm","Folklore","Guile","Intuition","Stealth",null,"Charm, Folklore, Guile, Intuition, Stealth"]
[null,"Performer","Charm","Coordination","Discipline","Folklore","Intuition",null,"Charm, Coordination, Discipline, Folklore, Intuition"]
[null,"Pistolier","Ballistic Skill","Coordination","Discipline","Leadership","Ride",null,"Ballistic Skill, Coordination, Discipline, Leadership, Ride"]
[null,"Pit Fighter","Athletics","Guile","Intimidate","Resilience","Weapon Skill",null,"Athletics, Guile, Intimidate, Resilience, Weapon Skill"]
[null,"Ratcatcher","Animal Handling","Folklore","Observation","Resilience","Stealth",null,"Animal Handling, Folklore, Observation, Resilience, Stealth"]
[null,"Roadwarden","Folklore","Intuition","Observation","Ride","Weapon Skill",null,"Folklore, Intuition, Observation, Ride, Weapon Skill"]
[null,"Scout","Ballistic Skill","Nature Lore","Observation","Ride","Stealth",null,"Ballistic Skill, Nature Lore, Observation, Ride, Stealth"]
[null,"Scribe","Discipline","Education","Folklore","Intuition","Observation",null,"Discipline, Education, Folklore, Intuition, Observation"]
[null,"Servant","Athletics","Coordination","Folklore","Intuition","Resilience",null,"Athletics, Coordination, Folklore, Intuition, Resilience"]
[null,"Smuggler","Guile","Intimidate","Ride","Skulduggery","Stealth",null,"Guile, Intimidate, Ride, Skulduggery, Stealth"]
[null,"Soldier","Ballistic Skill","Discipline","Leadership","Ride","Weapon Skill",null,"Ballistic Skill, Discipline, Leadership, Ride, Weapon Skill"]
[null,"Student","Discipline","Education","Folklore","Nature Lore","Observation",null,"Discipline, Education, Folklore, Nature Lore, Observation"]
[null,"Sword Master","Coordination","Discipline","Intuition","Leadership","Weapon Skill",null,"Coordination, Discipline, Intuition, Leadership, Weapon Skill"]
[null,"Thief","Coordination","Discipline","Guile","Skulduggery","Stealth",null,"Coordination, Discipline, Guile, Skulduggery, Stealth"]
[null,"Thug","Athletics","Guile","Intimidate","Skulduggery","Weapon Skill",null,"Athletics, Guile, Intimidate, Skulduggery, Weapon Skill"]
[null,"Troll Slayer","Athletics","Intimidate","Resilience","Weapon Skill",null,null,"Athletics, Intimidate, Resilience, Weapon Skill, "]
[null,"Wardancer","Athletics","Coordination","Discipline","Nature Lore","Weapon Skill",null,"Athletics, Coordination, Discipline, Nature Lore, Weapon Skill"]
[null,"Watchman","Discipline","Intuition","Leadership","Observation","Resilience",null,"Discipline, Intuition, Leadership, Observation, Resilience"]
[null,"Waywatcher","Athletics","Ballistic Skill","Coordination","Nature Lore","Stealth",null,"Athletics, Ballistic Skill, Coordination, Nature Lore, Stealth"]
[null,"Witch","Guile","Folklore","Intuition","Resilience","Spellcraft",null,"Guile, Folklore, Intuition, Resilience, Spellcraft"]
[null,"Zealot","Athletics","Discipline","Intimidate","Piety","Resilience",null,"Athletics, Discipline, Intimidate, Piety, Resilience"]

{"sheet":"Names","index":3,"n_rows":300,"n_cols":22,"rows_kept":300,"cut":false,"hidden":false,"merged":[[1,5,1,6]]}
["Imperial Male Names","Imperial Female Names","Imperial Surnames",null,null,null,null,null,"Dwarf Element 1","Element 2 (Male)","Element 2 (Female)",null,"Elf Element 1","Elf Connectors","Element 2 (Male)","Element 2 (Female)","Elf Surnames",null,"Halfling Element 1","Element 2 (Male)","Element 2 (Female)","Halfling Surnames"]
["Abelhard","Abbie","Adelhof",null,"Your Name:",{"$f":"IF('Character Creator'!A2=\"Reiklander\",Names!F7,IF('Character Creator'!A2=\"Dwarf\",Names!F9,IF('Character Creator'!A2=\"High Elf\",Names!F11,IF('Character Creator'!A2=\"Wood Elf\",Names!F11,IF('Character Creator'!A2=\"Halfling\",Names!F13,IF('Character Creator'!A2=\"Choose your race...\",\"You need to choose a race first.\",\"Names are not supported for that race.\"))))))","v":"You need to choose a race first."},null,null,"Al","bin","bina",null,"Aed","a","baen","a","Blackcairn",null,"Bag","belly","a","Alderberry"]
["Abelhelm","Abighild","Albrecht",null,null,null,null,null,"Ath","bor","bora",null,"Ael","al","baine","aine","Blackwood",null,"Balf","er","adell","Alepuddle"]
["Admund","Abigund","Allenstag",null,null,null,null,null,"Athran","dil","dila",null,"Aelf","an","baire","am","Blackbough",null,"Berc","fast","alor","Appleback"]
["Adred","Abigunda","Altmann",null,null,null,null,null,"Bal","din","dina",null,"Aen","ar","bar","ann","Bluefeather",null,"Bill","in","apple","Barleycorn"]
["Adric","Ada","Atzwig",null,null,null,null,null,"Bala","dok","dokina",null,"Aeth","as","bhir","arma","Bluewing",null,"Bobb","it","bell","Barncock"]
["Agis","Adel","Bacher",null,"Imperial Male Name:",{"$f":"CONCATENATE(INDEX(A2:A300,RANDBETWEEN(1,COUNTA(A2:A300))), \" \", INDEX(C2:C101,RANDBETWEEN(1,COUNTA(C2:C101))))","v":"Ingwald Jaeger"},null,null,"Bara","dor","dora",null,"Alth","e","brier","arna","Boldheart",null,"Bodg","mutch","berry","Bayleaf"]
["Alaric","Adelind","Baer",null,"Imperial Female Name:",{"$f":"CONCATENATE(INDEX(B2:B300,RANDBETWEEN(1,COUNTA(B2:B300))), \" \", INDEX(C2:C101,RANDBETWEEN(1,COUNTA(C2:C101))))","v":"Emerlyn Weber"},null,null,"Bel","drin","drinella",null,"An","el","brior","arth","Boldspear",null,"Bog","o","eena","Bloomberry"]
["Alberic","Adeline","Baumann",null,"Dwarven Male Name:",{"$f":"CONCATENATE((INDEX(I2:I101,RANDBETWEEN(1,COUNTA(I2:I101)))),(INDEX(J2:J55,RANDBETWEEN(1,COUNTA(J2:J55)))), \" (son of \",(INDEX(I2:I101,RANDBETWEEN(1,COUNTA(I2:I101)))),(INDEX(J2:J55,RANDBETWEEN(1,COUNTA(J2:J55)))), \")\")","v":"Norangan (son of Firengar)"},null,null,"Bela","fin","fina",null,"And","en","brin","ath","Bravehelm",null,"Bom","odoc","ella","Bracebelly"]
["Albrecht","Adelyn","Becker",null,"Dwarven Female Name:",{"$f":"CONCATENATE((INDEX(I2:I101,RANDBETWEEN(1,COUNTA(I2:I101)))),(INDEX(K2:K55,RANDBETWEEN(1,COUNTA(K2:K55)))), \" (daughter of \",(INDEX(I2:I101,RANDBETWEEN(1,COUNTA(I2:I101)))),(INDEX(K2:K55,RANDBETWEEN(1,COUNTA(K2:K55)))), \")\")","v":"Ullatrekina (daughter of Athranmira)"},null,null,"Ber","gan","fya",null,"Ar","er","daen","beann","Bravestar",null,"Bonn","riadoc","era","Braidgirdle"]
["Aldebrand","Adelle","Behn",null,"Elf Male Name:",{"$f":"CONCATENATE((INDEX(M2:M101,RANDBETWEEN(1,COUNTA(M2:M101)))),(INDEX(N2:N101,RANDBETWEEN(1,COUNTA(N2:N101)))),(INDEX(O2:O101,RANDBETWEEN(1,COUNTA(O2:O101)))),\" \",(INDEX(Q2:Q101,RANDBETWEEN(1,COUNTA(Q2:Q101)))))","v":"Elontaen Fleetwing"},null,null,"Bok","gar","gana",null,"Arg","es","daine","bet","Brightcrown",null,"Brog","regar","et","Bramble"]
["Aldred","Agathe","Betz",null,"Elf Female Name:",{"$f":"CONCATENATE((INDEX(M2:M101,RANDBETWEEN(1,COUNTA(M2:M101)))),(INDEX(N2:N101,RANDBETWEEN(1,COUNTA(N2:N101)))),(INDEX(P2:P101,RANDBETWEEN(1,COUNTA(P2:P101)))),\" \",(INDEX(Q2:Q101,RANDBETWEEN(1,COUNTA(Q2:Q101)))))","v":"Tabrinisa Strongtower"},null,null,"Bor","gil","gara",null,"Ast","fan","daire","beth","Brightknife",null,"Bulc","wick","ia","Bunbury"]
["Aldric","Agnete","Beyer",null,"Halfling Male Name:",{"$f":"CONCATENATE((INDEX(S2:S101,RANDBETWEEN(1,COUNTA(S2:S101)))),(INDEX(T2:T15,RANDBETWEEN(1,COUNTA(T2:T15)))),\" \",(INDEX(V2:V101,RANDBETWEEN(1,COUNTA(V2:V101)))))","v":"Ogfast Widgeon"},null,null,"Bur","gin","gella",null,"Ath","fen","dar","brim","Brightwand",null,"Bull","wise","flower","Burrows"]
["Alfreid","Aldreda","Bischof",null,"Halfling Female Name:",{"$f":"CONCATENATE((INDEX(S2:S101,RANDBETWEEN(1,COUNTA(S2:S101)))),(INDEX(U2:U15,RANDBETWEEN(1,COUNTA(U2:U15)))),\" \",(INDEX(V2:V101,RANDBETWEEN(1,COUNTA(V2:V101)))))","v":"Cobadell Fastbuck"},null,null,"Da","gni","gina",null,"Av","fin","dhil","brys","Coolstream",null,"Bust","wit","lotta","Catkins"]
["Altmar","Alfreda","Boehm",null,null,null,null,null,"Dam","grom","groma",null,"Ban","i","dhir","deann","Coolwater",null,"Cam","y","petal","Churnhill"]
["Alric","Alicia","Breitenbach",null,null,null,null,null,"Dora","grond","grondella",null,"Bel","il","drel","det","Darkeagle",null,"Cap",null,"riella","Cinderhill"]
["Andre","Allane","Breuer",null,null,null,null,null,"Drok","groth","grotha",null,"Beth","in","drir","deth","Darkmane",null,"Ced",null,"sweet","Clinchstick"]
["Andred","Althea","Dahmbach",null,"Paste Values",null,null,null,"Drong","grum","gruma",null,"Cad","ir","dror","dys","Darkmoon",null,"Chund",null,"trude","Clumpthistle"]
["Andric","Amalie","Delfholt",null,"If you want to just paste the values from copied cells, just hit ATL+E followed by S and V. Very useful when you want to strip away existing formatting and work with plain data.",null,null,null,"Dur","grund","grunda",null,"Cael","is","eorl","drian","Eldenkin",null,"Clog",null,"rose","Codgerman"]
["Anshelm","Amalinde","Drakenhof",null,null,null,null,null,"Dwal","grunt","gruntina",null,"Caem","o","eos","driel","Eldendrake",null,"Clof",null,"willow","Crabapple"]
["Anton","Amalyn","Drauwulf",null,null,null,null,null,"El","gon","gona",null,"Caeth","ol","eoth","drys","Fairowl",null,"Cob",null,"y","Croop"]
["Arne","Anhilda","Durrbein",null,null,null,null,null,"Ela","gor","gora",null,"Cal","on","fil","eann","Fairwater",null,"Cog",null,null,"Crumbuckle"]
["Arnulf","Annabella","Ehrhard",null,null,null,null,null,"Elan","grim","grimella",null,"Cam","or","fin","eanna","Fastblade",null,"Crum",null,null,"Crumbly"]
["Axel","Annabella","Eisenhauer",null,null,null,null,null,"Elda","grin","grina",null,"Cel","os","fir","earna","Fastspear",null,"Crump",null,null,"Curlytoes"]
["Axelbrand","Anthea","Eschlimann",null,null,null,null,null,"Fa","grom","gromina",null,"Cir","ra","hil","earth","Fastwing",null,"Curl",null,null,"Custard"]
["Baldred","Arabella","Falkenheim",null,null,null,null,null,"Far","gul","gula",null,"El","ral","hin","elle","Fellhand",null,"Dod",null,null,"Dibbly"]
["Baldric","Aver","Fehr",null,null,null,null,null,"Fara","gun","gunella",null,"Eld","ran","hir","eth","Fellblade",null,"Dog",null,null,"Dibbly-Firkin"]
["Baldwin","Bechilda","Fiegler",null,null,null,null,null,"Fim","gund","gundina",null,"Elth","re","hor","eys","Fleetfoot",null,"Dott",null,null,"Dimmock"]
["Balthasar","Bella","Fleischer",null,null,null,null,null,"Fima","ki","kina",null,"En","rel","il","eyth","Fleet-thought",null,"Dram",null,null,"Darkwater"]
["Barnabas","Bellane","Frohlich",null,null,null,null,null,"Firen","kin","kragella",null,"End","ren","in","felle","Fleetwing",null,"Drub",null,null,"Dogberry"]
["Bart","Benedicta","Frueh",null,null,null,null,null,"Fur","krag","krina",null,"Er","ri","ion","fionn","Gladheart",null,"Drog",null,null,"Downhill"]
["Bartolf","Berlinda","Fuchs",null,null,null,null,null,"Fura","kri","kya",null,"Ers","ril","ir","flys","Gladshore",null,"Dron",null,null,"Downside"]
["Bartomar","Berlyn","Gaffwig",null,null,null,null,null,"Ga","krin","lina",null,"Fand","rin","is","fyll","Gladwind",null,"Durc",null,null,"Duckweed"]
["Bernolt","Bertha","Gaertner",null,null,null,null,null,"Gim","li","likina",null,"Fer","ro","ith","fynn","Goldenbrook",null,"Elm",null,null,"Fairtrot"]
["Bertold","Berthilda","Gebauer",null,null,null,null,null,"Gol","lin","loka",null,"Ferg","rol","lael","fyr","Goldencloud",null,"Enn",null,null,"Farfield"]
["Bertolf","Bess","Godtgraf",null,null,null,null,null,"Gollen","lik","luna",null,"Fim","ron","laen","fys","Goldenhair",null,"Ermin",null,null,"Farthingale"]
["Boris","Beth","Grunenwald",null,null,null,null,null,"Got","lok","mina",null,"Fin","ry","laer","i","Goldenroot",null,"Ethan",null,null,"Fastbuck"]
["Bruno","Broncea","Guth",null,null,null,null,null,"Gota","lun","mira",null,"Gal","sa","laine","ille","Goodwood",null,"Falc",null,null,"Fetlock"]
["Burgolf","Brunhilda","Haintz",null,null,null,null,null,"Grim","min","nina",null,"Gald","sal","laire","ina","Greendale",null,"Fald",null,null,"Finefettle"]
["Calvin","Camilla","Herz",null,null,null,null,null,"Gro","mir","nya",null,"Gaen","san","lan","ira","Greenfeather",null,"Falm",null,null,"Firkin"]
["Casimir","Carla","Herzog",null,null,null,null,null,"Grun","nin","ragina",null,"Gaes","se","las","isa","Greenglade",null,"Far",null,null,"Follyfoot"]
["Caspar","Carlinda","Hirtzel",null,null,null,null,null,"Hak","nir","riga",null,"Ged","sel","len","iti","Hawkhelm",null,"Fild",null,null,"Furrows"]
["Cedred","Carlotta","Hoch",null,null,null,null,null,"Haka","rag","rika",null,"Gen","sen","les","irt","Hawkstar",null,"Flac",null,null,"Girthtree"]
["Conrad","Cilicia","Hoefer",null,null,null,null,null,"Har","ri","rina",null,"Ges","si","lil","la","Hawkwood",null,"Fogg",null,null,"Gumbucket"]
["Corvin","Cilie","Hofstetter",null,null,null,null,null,"Hega","rig","runa",null,"Geth","sil","lin","lam","Keeneye",null,"Frit",null,null,"Guzzlewit"]
["Dagmar","Clora","Jaeger",null,null,null,null,null,"Hur","rik","runella",null,"Glor","sin","lir","lana","Keengaze",null,"Ful",null,null,"Greenacre"]
["Dankmar","Clothilda","Jochutz",null,null,null,null,null,"Kad","rin","skina",null,"Has","so","lis","larna","Keensight",null,"Func",null,null,"Greenapple"]
["Dankred","Connie","Jutzenbach",null,null,null,null,null,"Kar","run","skinella",null,"Hath","sol","lor","lath","Kindheart",null,"Gaff",null,null,"Greenhill"]
["Dekmar","Constance","Kalb",null,null,null,null,null,"Kata","skin","tina",null,"Hel","son","los","leann","Kindwater",null,"Galb",null,null,"Grogbelly"]
["Detlef","Constanza","Kaltenbach",null,null,null,null,null,"Kaz","tin","toka",null,"Heth","u","mael","leath","Lightfoot",null,"Gamm",null,null,"Grubb"]
["Diebold","Cordelia","Kraemer",null,null,null,null,null,"Kaza","tok","trekella",null,"Hith","ul","maen","lel","Lightwing",null,"Gert",null,null,"Grumble"]
["Diel","Dema","Krebs",null,null,null,null,null,"Krag","trek","trekina",null,"Ill","","mair","lelle","Longleap",null,"Giff",null,null,"Harfoot"]
["Dietfried","Demona","Kuhn",null,null,null,null,null,"Logaz","trok","troka",null,"Ind","","main","leth","Longroad",null,"Gild",null,null,"Haricot"]
["Dieter","Desdemona","Kummel",null,null,null,null,null,"Lok","zin","zina",null,"Ist","","mal","leth","Oldmane",null,"Gon",null,null,"Havelock"]
["Dietmar","Dorthilda","Konig",null,null,null,null,null,"Lun","zor","zora",null,"Ith","","mar","lielle","Oldtower",null,"Grop",null,null,"Hempfire"]
["Dietmund","Drachena","Konigsamen",null,null,null,null,null,"Mo",null,null,null,"Iy","","mil","lieth","Palemoon",null,"Gudd",null,null,"Hornblower"]
["Dietrich","Drachilda","Lang",null,null,null,null,null,"Mola",null,null,null,"Kor","","min","lyann","Palewand",null,"Gump",null,null,"Kettlebright"]
["Dirk","Edhilda","Lankdorf",null,null,null,null,null,"Mor",null,null,null,"Ky","","mir","nelle","Purelight",null,"Ham",null,null,"Lackstern"]
["Donar","Edith","Liess",null,null,null,null,null,"Mora",null,null,null,"Kyr","","nael","nem","Puresky",null,"Hal",null,null,"Larkspur"]
["Durnhelm","Edyth","Lebengut",null,null,null,null,null,"No",null,null,null,"La","","naen","neth","Seagleam",null,"Hart",null,null,"Lilywhite"]
["Eber","Edythe","Lutzen",null,null,null,null,null,"Nola",null,null,null,"Lan","","naer","ni","Seamist",null,"Harp",null,null,"Longbelt"]
["Eckel","Eleanor","Machholt",null,null,null,null,null,"Nor",null,null,null,"Lil","","nail","niell","Shadowhelm",null,"Jac",null,null,"Longchalk"]
["Eckhart","Elinor","Meusmann",null,null,null,null,null,"Noran",null,null,null,"Lim","","nair","niella","Shadowseer",null,"Jas",null,null,"Manglepie"]
["Edgar","Elisinda","Meyer",null,null,null,null,null,"Nun",null,null,null,"Lith","","nal","nith","Shadowstar",null,"Jasp",null,null,"Marrow"]
["Edmund","Elsina","Mohr",null,null,null,null,null,"Oda",null,null,null,"Loth","","nan","ras","Sharpblade",null,"Joc",null,null,"Meadowdown"]
["Edwin","Ella","Muller",null,null,null,null,null,"Oka",null,null,null,"Mal","","nar","reann","Sharpspear",null,"Lac",null,null,"Meadowsweet"]
["Ehrhart","Ellene","Nachtmann",null,null,null,null,null,"Olla",null,null,null,"Mar","","neal","rell","Shiningmoon",null,"Lil",null,null,"Millpond"]
["Ehrl","Ellinde","Naubhof",null,null,null,null,null,"Olf",null,null,null,"Mas","","nean","relle","Shininghelm",null,"Lob",null,null,"Muggins"]
["Ehrwig","Eloise","Netzhoch",null,null,null,null,null,"Oth",null,null,null,"Math","","near","rielle","Slenderblade",null,"Lott",null,null,"Mugwort"]
["Eldred","Elsa","Neumann",null,null,null,null,null,"Othra",null,null,null,"Me","","nil","ris","Slendertree",null,"Lud",null,null,"Neddly"]
["Elmeric","Elsbeth","Niederlitz",null,null,null,null,null,"Ro",null,null,null,"Mes","","nin","rith","Slenderwand",null,"Lurc",null,null,"Oddfoot"]
["Emil","Elspeth","Nuhr",null,null,null,null,null,"Ror",null,null,null,"Meth","","nir","rys","Soaringleaf",null,"Mad",null,null,"Overhill"]
["Engel","Elyn","Oberholtzer",null,null,null,null,null,"Roran",null,null,null,"Men","","nis","sar","Soaringsun",null,"Mag",null,null,"Patchpearl"]
["Engelbert","Emagunda","Ohrsten",null,null,null,null,null,"Ska",null,null,null,"Mor","","ran","sath","Starbrow",null,"Man",null,null,"Pennyman"]
["Engelbrecht","Emelia","Otzlowe",null,null,null,null,null,"Skalla",null,null,null,"Mort","","rea","ser","Starfire",null,"May",null,null,"Quickblossom"]
["Engelhart","Emme","Reichert",null,null,null,null,null,"Skalf",null,null,null,"Nal","","rel","seth","Stargaze",null,"Mer",null,null,"Quiggly"]
["Eodred","Emmalyn","Reifsneider",null,null,null,null,null,"Skar",null,null,null,"Nar","","ril","sir","Strongarrow",null,"Mul",null,null,"Quivergrass"]
["Eomund","Emmanuel","Riese",null,null,null,null,null,"Skor",null,null,null,"Nen","","riol","sith","Stronghand",null,"Murc",null,null,"Rattlebone"]
["Erdman","Emerlinde","Rohrig",null,null,null,null,null,"Skora",null,null,null,"Nor","","rion","sor","Strongtower",null,"Murd",null,null,"Ridgepole"]
["Erdred","Emerlyn","Reiss",null,null,null,null,null,"Snor",null,null,null,"Norl","","rior","soth","Silverdawn",null,"Nag",null,null,"Riverbank"]
["Erkenbrand","Erica","Schaffer",null,null,null,null,null,"Snora",null,null,null,"Ri","","riorl","shar","Silverhair",null,"Nell",null,null,"Rook"]
["Erasmus","Ermina","Schaumer",null,null,null,null,null,"Sven",null,null,null,"Riabb","","riorn","sher","Silverleaf",null,"Nobb",null,null,"Rumplebreek"]
["Erich","Erminlind","Scherer",null,null,null,null,null,"Thar",null,null,null,"Riann","","rir","shir","Sure-eye",null,"Od",null,null,"Sandyhill"]
["Erman","Ermintrude","Schultz",null,null,null,null,null,"Thor",null,null,null,"Rid","","ryel","sys","Surehand",null,"Og",null,null,"Shakebelly"]
["Ernst","Esmaralda","Schleiermacher",null,null,null,null,null,"Thora",null,null,null,"Reill","","taen","tar","Swiftbow",null,"Old",null,null,"Shufflefoot"]
["Erwin","Estelle","Schreiber",null,null,null,null,null,"Thron",null,null,null,"Rien","","tair","teal","Swifthand",null,"Pipp",null,null,"Sparrow"]
["Eugen","Etheldreda","Schwalb",null,null,null,null,null,"Thrun",null,null,null,"Ruth","","tain","teann","Swiftwing",null,"Podd",null,null,"Stonewort"]
["Eustasius","Ethelind","Steiner",null,null,null,null,null,"Thura",null,null,null,"Ryn","","than","ter","Tallbeam",null,"Porc",null,null,"Tallowman"]
["Ewald","Ethelreda","Tabbeck",null,null,null,null,null,"Un",null,null,null,"Tab","","thar","thea","Tallhelm",null,"Riff",null,null,"Talltree"]
["Fabian","Fay","Teuber",null,null,null,null,null,"Utha",null,null,null,"Tal","","thel","ther","Tenderheart",null,"Rip",null,null,"Tanglefoot"]
["Faustus","Frieda","Tulzen",null,null,null,null,null,"Ulla",null,null,null,"Tan","","thil","thi","Tendersong",null,"Rob",null,null,"Thistlewood"]
["Felix","Friedhilda","Trachsel",null,null,null,null,null,"Vala",null,null,null,"Tar","","thir","thryn","Truefriend",null,"Sam",null,null,"Thornpocket"]
["Ferdinand","Friedrun","Weber",null,null,null,null,null,"Var",null,null,null,"Teth","","thin","thyn","Trueseer",null,"Supp",null,null,"Tumblewine"]
["Fleuweiner","Friedrica","Wechsler",null,null,null,null,null,"Vara",null,null,null,"Tel","","thril","tir","Wiseheart",null,"Taff",null,null,"Tumpwell"]
["Fosten",null,"Wirtz",null,null,null,null,null,"Zak",null,null,null,"Tor","","thrin","tor","Wisewind",null,"Talb",null,null,"Whiteflower"]
["Franz",null,"Widmann",null,null,null,null,null,"Zaka",null,null,null,"Ty","","thwe","tos","Whitelock",null,"Talc",null,null,"Whitethorn"]
["Frediger",null,"Widmer",null,null,null,null,null,"Zakan",null,null,null,"Ul","","til","tryan","Whitereed",null,"Tay",null,null,"Widgeon"]
["Fredric",null,"Veir",null,null,null,null,null,"Zar",null,null,null,"Um","","tin","trys","Whiteor",null,"Tom",null,null,"Willowand"]
["Friebald",null,"Vogt",null,null,null,null,null,"Zara",null,null,null,"Ur","","tis","yll","Youngleaf",null,"Wald",null,null,"Winchgirdle"]
["Friedrich",null,"Vogel",null,null,null,null,null,"Zam",null,null,null,"Yr","","we","yrs","Youngstar",null,"Watt",null,null,"Windblossom"]
["Gawin",null,"Zumwald",null,null,null,null,null,"Zama",null,null,null,"Yv","","yan","ys","Youngwood",null,"Will",null,null,"Wrinkleberry"]
["Gerber"]
["Gerhart"]
["Gerlach"]
["Gernar"]
["Gerolf"]
["Gilbrecht"]
["Gisbert"]
["Giselbrecht"]
["Gismar"]
["Goran"]
["Gosbert"]
["Goswin"]
["Gotfried"]
["Gothard"]
["Gottolf"]
["Gotwin"]
["Gregor"]
["Greimold"]
["Grimwold"]
["Griswold"]
["Guido"]
["Gundolf"]
["Gundred"]
["Gunnar"]
["Gunter"]
["Gunther"]
["Gustaf"]
["Hadred"]
["Hadwin"]
["Hagar"]
["Hagen"]
["Haldred"]
["Halman"]
["Hamlyn"]
["Hans"]
["Harbrand"]
["Harman"]
["Hartmann"]
["Haug"]
["Heidric"]
["Heimar"]
["Heinfried"]
["Heinman"]
["Heinrich"]
["Heinz"]
["Helmut"]
["Henlyn"]
["Hermann"]
["Herwin"]
["Hieronymus"]
["Hildebart"]
["Hildebrand"]
["Hildemar"]
["Hildemund"]
["Hildred"]
["Hildric"]
["Horst"]
["Hugo"]
["Igor"]
["Ingwald"]
["Jander"]
["Jekil"]
["Jodokus"]
["Johann"]
["Jonas"]
["Jorg"]
["Jorn"]
["Josef"]
["Jost"]
["Jurgen"]
["Karl"]
["Kaspar"]
["Klaus"]
["Kleber"]
["Konrad"]
["Konradin"]
["Kurt"]
["Lamprecht"]
["Lanfried"]
["Lanric"]
["Lanwin"]
["Leo"]
["Leopold"]
["Levin"]
["Liebert"]
["Liebrecht"]
["Liebwin"]
["Lienhart"]
["Linus"]
["Lodwig"]
["Lothar"]
["Lucius"]
["Ludwig"]
["Luitpold"]
["Lukas"]
["Lupold"]
["Lupus"]
["Luther"]
["Lutolf"]
["Madred"]
["Magnus"]
["Mandred"]
["Manfred"]
["Mathias"]
["Max"]
["Maximillian"]
["Meiner"]
["Meinhart"]
["Meinolf"]
["Mekel"]
["Merkel"]
["Nat"]
["Nathandar"]
["Nicodemus"]
["Odamar"]
["Odric"]
["Odwin"]
["Olbrecht"]
["Oldred"]
["Oldric"]
["Ortlieb"]
["Ortolf"]
["Orwin"]
["Oswald"]
["Osric"]
["Oswin"]
["Otfried"]
["Otto"]
["Otwin"]
["Paulus"]
["Prospero"]
["Ragen"]
["Ralf"]
["Rambrecht"]
["Randulf"]
["Ranulf"]
["Ranald"]
["Reikhard"]
["Rein"]
["Reiner"]
["Reinhard"]
["Reinolt"]
["Reuban"]
["Rigo"]
["Roderic"]
["Rolf"]
["Ruben"]
["Rudel"]
["Rudgar"]
["Rudolf"]
["Rufus"]
["Ruprecht"]
["Sebastian"]
["Semund"]
["Sepp"]
["Sieger"]
["Siegfried"]
["Siegmund"]
["Sigismund"]
["Sigric"]
["Steffan"]
["Tankred"]
["Theoderic"]
["Tilmann"]
["Tomas"]
["Trubald"]
["Trubert"]
["Udo"]
["Ulli"]
["Ulfred"]
["Ulfman"]
["Ulman"]
["Uto"]
["Valdred"]
["Valdric"]
["Varl"]
["Viggo"]
["Viktor"]
["Vilmar"]
["Volker"]
["Volkhard"]
["Volkrad"]
["Volkin"]
["Voltz"]
["Walbrecht"]
["Waldor"]
["Waldred"]
["Walther"]
["Warmund"]
["Werner"]
["Wilbert"]
["Wilfried"]
["Wilhelm"]
["Woldred"]
["Wolfram"]
["Wolfhart"]
["Wolfgang"]
["Wulf"]
["Xavier"]

{"sheet":"Race","index":4,"n_rows":22,"n_cols":10,"rows_kept":22,"cut":false,"hidden":false,"merged":[]}
["Starting Points",null,"Ability Header","Ability #1","Ability #2","Ability #3","Ability #4","Ability #5","Ability #6"]
[20,"Choose your race...","","","","","","","",""]
[25,"Human (Reiklander)","Reiklander Special Abilities","Adaptable: Career transitions for Reiklanders cost one less advance, which may reduce a career transition to zero advances","Diversity: At character creation, all humans begin with 25 creation points","Favoured by Fate: Once per session, a Reiklander may add two fortune dice to any single check","","","","Here are the three careers a Reiklander is permitted to take:"]
[25,"Human (Averlander)","Averlander Special Abilities","Diversity: At character creation, all humans begin with 25 creation points","Greenskinners: Each time an Averlander kills a non-henchman greenskin, he may recover either 1 stress or 1 fatigue or may perform a free manoeuvre","Superior Stock: The Strength score of any horse ridden by an Averlander is increased by 1.","","","","Here are the three careers an Averlander is permitted to take:"]
[25,"Human (Hochlander)","Hochlander Special Abilities","Diversity: At character creation, all humans begin with 25 creation points","Marksmen: When a Hochlander spends a fortune point on a Ballistic Skill check with a weapon with which he is specialised, he adds an expertise die to the check instead of a fortune die.","Rustic Composure: Hochlanders gain two fortune dice on initiative checks when in a rural setting.","","","","Here are the three careers a Hochlander is permitted to take:"]
[25,"Human (Middenlander)","Middenlander Special Abilities","Diversity: At character creation, all humans begin with 25 creation points","Slayers of Beastmen: All of a Middenlander's  Melee Attacks  or  Ranged Attacks, or  Spells or  Blessings that target the defence of a beastman gains: Two boons = +2 damage","Spirit of the Wolf: Once per session, when targeted by an attack, a Middenlander may increase his defence value by an amount equal to his Agility.","","","","Here are the three careers a Middenlander is permitted to take:"]
[25,"Human (Nordlander)","Nordlander Special Abilities","Diversity: At character creation, all humans begin with 25 creation points","Nautical: Nordlanders add a fortune die to any check made to handle a boat, navigate a ship, swim, or work with ropes.","Northerners: Two fewer misfortune dice are added to a Nordlander's dice pool for any effects from cold, wind or bad weather.","","","","Here are the three careers a Nordlander is permitted to take:"]
[25,"Human (Ostermarker)","Ostermark Special Abilities","Diversity: At character creation, all humans begin with 25 creation points","Monster Slayers: Ostermarkers gain a fortune die to all Melee Attacks or Ranged Attacks, or Spells or Blessings that target the defence of any creature with a Fear or Terror rating.","Stoic Defenders: Add a misfortune die to all Melee Attacks or Ranged Attacks, or Spells or Blessings that target the defence of an Ostermarker whenever he is outnumbered.","","","","Here are the three careers an Ostermarker is permitted to take:"]
[25,"Human (Ostlander)","Ostlander Special Abilities","Diversity: At character creation, all humans begin with 25 creation points","Fighters Against Chaos: Ostlanders treat the difficulty of all Fear ratings of foes aligned to Chaos as 1 less than normal (to a minimum of 1). In addition, the Terror ratings of foes aligned to Chaos are treated as Fear ratings instead (but do not have their rating reduced).","Stubborn: Ostlanders' mental characteristics are considered to be one higher for the purposes of determining whether that characteristic is distressed.","","","","Here are the three careers an Ostlander is permitted to take:"]
[25,"Human (Stirlander)","Stirlander Special Abilities","Diversity: At character creation, all humans begin with 25 creation points","Hatred of the Undead: Stirlanders gain the Invigorated condition whenever they are within long range of Undead.","Poor: During character creation, it costs 3 creation points for a Stirlander to start as comfortable, and 4 to start as affluent","Unflinching: Stirlanders treat the difficulty of all Fear ratings of Undead as 1 less than normal (to a minimum of 1). In addition, the Terror ratings of Undead are treated as Fear ratings instead (but do not have their rating reduced).","","","Here are the three careers a Stirlander is permitted to take:"]
[25,"Human (Talabeclander)","Talabeclander Special Abilities","Diversity: At character creation, all humans begin with 25 creation points","Lore of the Wild: When a Talabeclander spends a fortune point on a Nature Lore check, he adds an expertise die to the check instead of a fortune die.","Trackers: Talabeclanders add a fortune die to all Observation checks made in a rural environment.","","","","Here are the three careers a Talabeclander is permitted to take:"]
[25,"Human (Wissenlander)","Wissenlander Special Abilities","Devout: After resolving an action in which a Wissenlander spent one or more fortune point, roll an expertise die. If the result is a Sigmar's Comet, the Wissenlander gains 1 fortune point.","Diversity: At character creation, all humans begin with 25 creation points","Grim: When performing an action, a Wissenlander ignores the first bane that is not canceled by a boon, before triggering any bane effects.","","","","Here are the three careers a Wissenlander is permitted to take:"]
[20,"Dwarf (Karak-Azgaraz)","Karak-Azgaraz Dwarf Special Abilities","Children of Grungni: Before investing any creation points, an Azgaraz Dwarf may train one of the following skills for free - Discipline, Resilience, or Weapon Skill","Grudge: You gaina fortune die to all Melee Attack and Ranged Attack actions against Greenskins, as well as anyone that has wounded you. This bonus lasts until the end of the encounter.","Night Vision: Two fewer misfortune dice are added to your dice pool for any effects stemming from darkness or lack of sufficient light","Sturdy: A dwarf adds 5 to his encumbrance limit","","","Here are the three careers a Karak-Azgaraz Dwarf is permitted to take:"]
[20,"Dwarf (Zhufbar)","Zhufbar Dwarf Special Abilities","Grudge: You gaina fortune die to all Melee Attack and Ranged Attack actions against Greenskins, as well as anyone that has wounded you. This bonus lasts until the end of the encounter.","Natural Engineers: During character creation, a Zhufbar dwarf may train one of the following basic skills for free - Discipline or Resilience. Alternatively a Zhufbar Dwarf may acquire (but not train) the advanced skill Tradecraft or Dwarf Engineering for free.","Night Vision: Two fewer misfortune dice are added to your dice pool for any effects stemming from darkness or lack of sufficient light","Sturdy: A dwarf adds 5 to his encumbrance limit","","","Here are the three careers a Zhufbar Dwarf is permitted to take:"]
[20,"Dwarf (Barak Varr)","Barak Varr Dwarf Special Abilities","Born Traders: During character creation, Barak Varr dwarfs may train one of the following basic skills for free - Charm, Discipline or Resilience. In addition, when a Barak Varr dwarf makes a successful Charm or Guile check when haggling, add one success to the results pool.","Grudge: You gaina fortune die to all Melee Attack and Ranged Attack actions against Greenskins, as well as anyone that has wounded you. This bonus lasts until the end of the encounter.","Night Vision: Two fewer misfortune dice are added to your dice pool for any effects stemming from darkness or lack of sufficient light","Sturdy: A dwarf adds 5 to his encumbrance limit","","","Here are the three careers a Barak Varr Dwarf is permitted to take:"]
[20,"Dwarf (Karaz-A-Karak)","Karaz-A-Karak Dwarf Special Abilities","Eternal Grudge: A Karaz-a-Karak Dwarf gains a fortune die to all Melee Attack and Ranged Attack actions against Greenskins, and any individual that has ever wounded, taunted or insulted him. A Karaz-a-Karak Dwarf may choose to suffer stress in order to add additional a fortune die to the dice pool of any such action. For each stress suffered in this way, add a fortune die to the dice pool.","Proud and Strong: A Karaz-a-Karak Dwarf ignores the first point of stress and the first point of fatigue suffered each session.","Night Vision: Two fewer misfortune dice are added to your dice pool for any effects stemming from darkness or lack of sufficient light","Sturdy: A dwarf adds 5 to his encumbrance limit","","","Here are the three careers a Karaz-A-Karak Dwarf is permitted to take:"]
[20,"High Elf","High Elf Special Abilities","Composure: As a high elf, you may gain one Focus talent for free","Erudite: High elves acquire (but do not train) the Education advanced skill for free","Ishas Chosen: As a high elf, you may train in one of the following basic skills for free: Discipline, Intuition, or Observation","Night Vision: Two fewer misfortune dice are added to your dice pool for any effects stemming from darkness or lack of sufficient light","","","Here are the three careers a High Elf is permitted to take:"]
[20,"Wood Elf","Wood Elf Special Abilities","Forest Walk: You may ignore terrain-based maneuver penalties. You may also remove up to two misfortune penalties to movement and/or actions while in woodland terrain","Nature Bond: Wood elves gain a fortune die to combat initiative, as well as to Observation and Stealth checks while they are in woodland terrain","Night Vision: Two fewer misfortune dice are added to your dice pool for any effects stemming from darkness or lack of sufficient light","Orion's Favoured: As a high elf, you may train in one of the following basic skills for free: Ballistics Skill, Nature Lore, Observation, or Stealth","","","Here are the three careers a Wood Elf is permitted to take:"]
[20,"Halfling","Halfling Special Abilities","Halfling Career Restrictions: Halflings can enter any career that a human can enter so long as it possesses either the Menial or Rogue trait.","Naturally Sneaky: Halflings often escape notice and as such all Observation checks to detect the halfling add two misfortune dice to the dice pool.","Night Vision: Two fewer misfortune dice are added to a Halfling's dice pool for any effects from darkness or lack of sufficient light","Roguish Pursuits: Before investing any creation points, a halfling may train one of the following skills for free - Ballistic Skill, Guile, Skulduggery, Stealth.","","","Here are the three careers a Halfling is permitted to take:"]
[20,"Ogre","Ogre Special Abilities","Bigger and Stronger: Ogres may improve their Strength and Toughness scores at a cost of one fewer creation point or advance. Since the maximum limit on characteristics is based on the available slots in the open career advance section, this also means that Ogres may increase their Strength and Toughness scores to 7, ignoring the normal maximum values. (They may not, however, exceed the normal starting characteristic limits of 5).","Night Vision: Ogres treat the difficulty of all Fear ratings confronting them as 1 less than normal (to a minimum of 1). In addition, Terror ratings confronting them are treated as Fear ratings instead (but do not have their rating reduced).","Ogre Career Restrictions: Ogres can enter any career that both a human and a dwarf can enter.","Ogre Starting Career: All Ogres begin play as a Maneater","The Great Maw: Ogres can and will eat almost any-thing - their hunger is legendary. In fact, Ogres must eat a pound of meat every hour or begin to starve. An Ogre who fails to eat adds a misfortune die to all checks for each \"meal\" he skips. He keeps adding misfortune dice to his checks until he is able to eat enough meat to make up for his skipped meals. If the number of misfortune dice added to his checks due to hunger ever exceeds an Ogre's Toughness score, he either descends into a desperate, murderous, rage, killing and eating everything around him, or slumps helplessly to the ground until fed (player's choice). Ogres gain 2 fortune dice to any check to resist ingested toxins, diseases, or any other hazard encountered through eating.","Thick Skin: Ogre hide is tougher and thicker than the smaller and weaker races. Ogres gain +1 soak.","Here is the one career an Ogre is permitted to take:"]
[null,"Choose a career…","","","","","","","",""]
[null,null,"","","","","","","",""]

{"sheet":"Notes","index":5,"n_rows":8,"n_cols":3,"rows_kept":8,"cut":false,"hidden":false,"merged":[[2,2,2,16],[5,2,5,16],[3,2,4,13],[6,2,6,16],[1,1,1,4]]}
[]
[null,"List of things that aren't finished:"]
[null,null,"Ogres are not yet active"]
[null,null,"I have yet to add a switch to allow you to choose females names of any race (and only a third of human female names are coded; all others are done)"]
[]
[null,null,"I am looking to update the formula to prevent the user from raising a stat beyond 5. This is more of a wish-list item."]
[null,null,"I am looking to update the formula to prevent the user from spending points down to less-than-zero. This is more of a wish-list item."]
[null,null,"I have no easy-to-use resource regarding Ogre names so they probably wont get added at all. "]